[Event "Titled Tuesday Blitz January 17 Early 2023"]
[White "Kuznetsov, Mikhail"]
[Black "Koellner, Ruben Gideon"]
[WhiteFideId "4117190"]
[BlackFideId "12993093"]
[WhiteElo "2050"]
[BlackElo "2426"]
[Result "1-0"]
[Round "06"]
[TimeControl "180+2"]
[Date "2023.01.17"]
[WhiteClock "0:00:37"]
[BlackClock "0:00:58"]

1. Nf3 {[%clk 0:03:00]}  Nf6 {[%clk 0:02:43]} 2. g3 {[%clk 0:03:00]}  d5 {[%clk 0:02:41]} 3. Bg2 {[%clk 0:02:59]}  Nbd7 {[%clk 0:02:42]} 4. d4 {[%clk 0:02:59]}  e6 {[%clk 0:02:42]} 5. O-O {[%clk 0:03:00]}  b5 {[%clk 0:02:41]} 6. a4 {[%clk 0:02:55]}  b4 {[%clk 0:02:41]} 7. a5 {[%clk 0:02:55]}  Ba6 {[%clk 0:02:41]} 8. Re1 {[%clk 0:02:53]}  c5 {[%clk 0:02:41]} 9. Nbd2 {[%clk 0:02:50]}  Be7 {[%clk 0:02:39]} 10. e4 {[%clk 0:02:49]}  dxe4 {[%clk 0:02:38]} 11. Nxe4 {[%clk 0:02:50]}  O-O {[%clk 0:02:36]} 12. Nxf6+ {[%clk 0:02:04]}  Bxf6 {[%clk 0:02:23]} 13. Be3 {[%clk 0:02:03]}  Rc8 {[%clk 0:02:18]} 14. c3 {[%clk 0:01:54]}  cxd4 {[%clk 0:02:13]} 15. Bxd4 {[%clk 0:01:50]}  bxc3 {[%clk 0:02:12]} 16. bxc3 {[%clk 0:01:49]}  Bxd4 {[%clk 0:02:05]} 17. Nxd4 {[%clk 0:01:34]}  Rxc3 {[%clk 0:01:59]} 18. Qd2 {[%clk 0:01:33]}  Qc7 {[%clk 0:01:53]} 19. Rac1 {[%clk 0:01:10]}  Rxc1 {[%clk 0:01:51]} 20. Rxc1 {[%clk 0:01:09]}  Qd6 {[%clk 0:01:48]} 21. Rc6 {[%clk 0:01:08]}  Qa3 {[%clk 0:01:39]} 22. Rxa6 {[%clk 0:01:05]}  Nc5 {[%clk 0:01:37]} 23. Rxa7 {[%clk 0:01:01]}  Rd8 {[%clk 0:01:37]} 24. Nc6 {[%clk 0:00:49]}  Rf8 {[%clk 0:01:25]} 25. Qd6 {[%clk 0:00:41]}  Qc1+ {[%clk 0:01:21]} 26. Bf1 {[%clk 0:00:41]}  g6 {[%clk 0:01:13]} 27. Ne7+ {[%clk 0:00:39]}  Kh8 {[%clk 0:00:58]} 28. Nxg6+ {[%clk 0:00:37]} 1-0


[Site "https://www.chess.com"]

[Event "Titled Tuesday Blitz January 17 Early 2023"]
[White "Nguyen Hong Nhung"]
[Black "Bocharov, Dmitry"]
[WhiteFideId "12412201"]
[BlackFideId "4138716"]
[WhiteElo "2003"]
[BlackElo "2516"]
[Result "0-1"]
[Round "06"]
[TimeControl "180+2"]
[Date "2023.01.17"]
[WhiteClock "0:00:39"]
[BlackClock "0:00:51"]

1. e4 {[%clk 0:02:57]}  c5 {[%clk 0:02:58]} 2. Nc3 {[%clk 0:02:57]}  a6 {[%clk 0:02:57]} 3. a4 {[%clk 0:02:55]}  Nc6 {[%clk 0:02:56]} 4. f4 {[%clk 0:02:53]}  g6 {[%clk 0:02:56]} 5. Nf3 {[%clk 0:02:53]}  Bg7 {[%clk 0:02:55]} 6. Bc4 {[%clk 0:02:53]}  e6 {[%clk 0:02:55]} 7. O-O {[%clk 0:02:53]}  Nge7 {[%clk 0:02:54]} 8. d3 {[%clk 0:02:53]}  O-O {[%clk 0:02:53]} 9. Qe1 {[%clk 0:02:54]}  d5 {[%clk 0:02:53]} 10. Bb3 {[%clk 0:02:50]}  Nd4 {[%clk 0:02:44]} 11. Nxd4 {[%clk 0:02:50]}  cxd4 {[%clk 0:02:44]} 12. Ne2 {[%clk 0:02:51]}  dxe4 {[%clk 0:02:44]} 13. dxe4 {[%clk 0:02:52]}  d3 {[%clk 0:02:33]} 14. Nc3 {[%clk 0:02:52]}  Nc6 {[%clk 0:02:30]} 15. cxd3 {[%clk 0:02:28]}  Qb6+ {[%clk 0:02:25]} 16. Kh1 {[%clk 0:02:13]}  Qxb3 {[%clk 0:02:23]} 17. e5 {[%clk 0:02:13]}  b6 {[%clk 0:02:09]} 18. Qf2 {[%clk 0:01:49]}  Bb7 {[%clk 0:02:05]} 19. Ra3 {[%clk 0:01:48]}  Qb4 {[%clk 0:02:04]} 20. Be3 {[%clk 0:01:43]}  Rad8 {[%clk 0:01:56]} 21. Bxb6 {[%clk 0:01:42]}  Rxd3 {[%clk 0:01:55]} 22. Bc5 {[%clk 0:01:40]}  Qc4 {[%clk 0:01:54]} 23. Bxf8 {[%clk 0:01:36]}  Bxf8 {[%clk 0:01:53]} 24. Raa1 {[%clk 0:01:36]}  Bc5 {[%clk 0:01:53]} 25. Qh4 {[%clk 0:01:33]}  Nd4 {[%clk 0:01:39]} 26. Rad1 {[%clk 0:01:26]}  Nf5 {[%clk 0:01:27]} 27. Qe1 {[%clk 0:01:08]}  Ne3 {[%clk 0:01:23]} 28. Rxd3 {[%clk 0:01:04]}  Qxd3 {[%clk 0:01:23]} 29. Rg1 {[%clk 0:00:58]}  Qc2 {[%clk 0:01:12]} 30. Qe2 {[%clk 0:00:48]}  Qf5 {[%clk 0:00:53]} 31. h3 {[%clk 0:00:39]}  Qxh3# {[%clk 0:00:51]} 0-1


[Site "https://www.chess.com"]

[Event "Titled Tuesday Blitz January 17 Early 2023"]
[White "Volkov, Maksim"]
[Black "Ozates, Tuna"]
[WhiteFideId "54123070"]
[BlackFideId "6354521"]
[WhiteElo "2258"]
[BlackElo "2251"]
[Result "0-1"]
[Round "06"]
[TimeControl "180+2"]
[Date "2023.01.17"]
[WhiteClock "0:00:02"]
[BlackClock "0:00:08"]

1. d4 {[%clk 0:02:22]}  Nf6 {[%clk 0:02:59]} 2. c4 {[%clk 0:02:22]}  c5 {[%clk 0:02:59]} 3. d5 {[%clk 0:02:20]}  g6 {[%clk 0:03:00]} 4. Nc3 {[%clk 0:02:19]}  Bg7 {[%clk 0:03:00]} 5. Nf3 {[%clk 0:02:19]}  O-O {[%clk 0:03:00]} 6. g3 {[%clk 0:02:20]}  d6 {[%clk 0:02:59]} 7. Bg2 {[%clk 0:02:20]}  Na6 {[%clk 0:02:56]} 8. O-O {[%clk 0:02:20]}  Nc7 {[%clk 0:02:56]} 9. e4 {[%clk 0:02:19]}  Rb8 {[%clk 0:02:54]} 10. a4 {[%clk 0:02:17]}  e6 {[%clk 0:02:51]} 11. Re1 {[%clk 0:02:06]}  exd5 {[%clk 0:02:47]} 12. cxd5 {[%clk 0:02:03]}  Re8 {[%clk 0:02:43]} 13. Bf4 {[%clk 0:01:56]}  Ng4 {[%clk 0:02:39]} 14. Qc2 {[%clk 0:01:53]}  b6 {[%clk 0:02:32]} 15. Nd2 {[%clk 0:01:48]}  Ne5 {[%clk 0:02:25]} 16. Nb5 {[%clk 0:01:42]}  a6 {[%clk 0:02:25]} 17. Na7 {[%clk 0:01:40]}  Bd7 {[%clk 0:02:15]} 18. Bxe5 {[%clk 0:01:36]}  Bxe5 {[%clk 0:02:14]} 19. Nc4 {[%clk 0:01:37]}  b5 {[%clk 0:02:13]} 20. Nxe5 {[%clk 0:01:35]}  Rxe5 {[%clk 0:02:11]} 21. f4 {[%clk 0:01:35]}  Re8 {[%clk 0:02:10]} 22. axb5 {[%clk 0:01:33]}  Nxb5 {[%clk 0:02:05]} 23. Nxb5 {[%clk 0:01:24]}  axb5 {[%clk 0:02:04]} 24. e5 {[%clk 0:01:23]}  Bf5 {[%clk 0:01:57]} 25. Qf2 {[%clk 0:01:11]}  h5 {[%clk 0:01:46]} 26. Ra6 {[%clk 0:01:04]}  Rb6 {[%clk 0:01:45]} 27. Ra7 {[%clk 0:01:01]}  Re7 {[%clk 0:01:31]} 28. Ra2 {[%clk 0:00:44]}  b4 {[%clk 0:01:15]} 29. h3 {[%clk 0:00:36]}  c4 {[%clk 0:01:09]} 30. Kh2 {[%clk 0:00:26]}  c3 {[%clk 0:01:04]} 31. bxc3 {[%clk 0:00:25]}  bxc3 {[%clk 0:01:03]} 32. Ra3 {[%clk 0:00:20]}  Rb2 {[%clk 0:01:00]} 33. Qd4 {[%clk 0:00:13]}  dxe5 {[%clk 0:00:41]} 34. fxe5 {[%clk 0:00:13]}  Be6 {[%clk 0:00:24]} 35. Qxc3 {[%clk 0:00:12]}  Rxg2+ {[%clk 0:00:20]} 36. Kxg2 {[%clk 0:00:12]}  Bxd5+ {[%clk 0:00:20]} 37. Kh2 {[%clk 0:00:11]}  Rc7 {[%clk 0:00:19]} 38. Qd3 {[%clk 0:00:11]}  Rd7 {[%clk 0:00:17]} 39. Qe3 {[%clk 0:00:08]}  Bb7 {[%clk 0:00:14]} 40. Re2 {[%clk 0:00:08]}  Rd1 {[%clk 0:00:13]} 41. Re1 {[%clk 0:00:04]}  Qd5 {[%clk 0:00:10]} 42. Ra2 {[%clk 0:00:02]}  Qh1+ {[%clk 0:00:08]} 0-1


[Site "https://www.chess.com"]

[Event "Titled Tuesday Blitz January 17 Early 2023"]
[White "Liyanage, Ranindu Dilshan"]
[Black "Sihite, Chelsie Monica Ignesias"]
[WhiteFideId "9915834"]
[BlackFideId "7101198"]
[WhiteElo "2342"]
[BlackElo "2266"]
[Result "1/2-1/2"]
[Round "06"]
[TimeControl "180+2"]
[Date "2023.01.17"]
[WhiteClock "0:00:07"]
[BlackClock "0:00:09"]

1. c4 {[%clk 0:02:48]}  e5 {[%clk 0:02:59]} 2. Nc3 {[%clk 0:02:47]}  Nc6 {[%clk 0:02:59]} 3. Nf3 {[%clk 0:02:47]}  Nf6 {[%clk 0:03:00]} 4. e4 {[%clk 0:02:47]}  Bb4 {[%clk 0:03:01]} 5. d3 {[%clk 0:02:45]}  Bxc3+ {[%clk 0:03:01]} 6. bxc3 {[%clk 0:02:45]}  h6 {[%clk 0:03:02]} 7. g3 {[%clk 0:02:41]}  O-O {[%clk 0:03:02]} 8. Bg2 {[%clk 0:02:41]}  d6 {[%clk 0:03:02]} 9. h3 {[%clk 0:02:40]}  Be6 {[%clk 0:03:02]} 10. Be3 {[%clk 0:02:38]}  Qd7 {[%clk 0:03:02]} 11. Nd2 {[%clk 0:02:37]}  a6 {[%clk 0:02:57]} 12. d4 {[%clk 0:02:24]}  exd4 {[%clk 0:02:56]} 13. cxd4 {[%clk 0:02:25]}  d5 {[%clk 0:02:04]} 14. cxd5 {[%clk 0:02:08]}  Bxd5 {[%clk 0:01:58]} 15. exd5 {[%clk 0:02:02]}  Nxd5 {[%clk 0:01:59]} 16. Bxd5 {[%clk 0:01:56]}  Qxd5 {[%clk 0:01:58]} 17. Qf3 {[%clk 0:01:57]}  Qb5 {[%clk 0:01:57]} 18. a4 {[%clk 0:01:40]}  Qd3 {[%clk 0:01:48]} 19. Qe2 {[%clk 0:01:26]}  Qf5 {[%clk 0:01:47]} 20. g4 {[%clk 0:01:20]}  Qe6 {[%clk 0:01:43]} 21. Qc4 {[%clk 0:01:10]}  Qf6 {[%clk 0:01:35]} 22. O-O {[%clk 0:01:00]}  Rad8 {[%clk 0:01:35]} 23. d5 {[%clk 0:00:55]}  Ne5 {[%clk 0:01:29]} 24. Qe4 {[%clk 0:00:54]}  Rfe8 {[%clk 0:01:27]} 25. Bd4 {[%clk 0:00:42]}  Qd6 {[%clk 0:01:11]} 26. Bxe5 {[%clk 0:00:29]}  Rxe5 {[%clk 0:01:10]} 27. Qg2 {[%clk 0:00:30]}  Rxd5 {[%clk 0:01:10]} 28. Ne4 {[%clk 0:00:30]}  Qb4 {[%clk 0:01:08]} 29. Ng3 {[%clk 0:00:28]}  g6 {[%clk 0:00:57]} 30. Rfe1 {[%clk 0:00:28]}  Kg7 {[%clk 0:00:55]} 31. Rac1 {[%clk 0:00:23]}  c6 {[%clk 0:00:53]} 32. Re4 {[%clk 0:00:20]}  Qa3 {[%clk 0:00:52]} 33. Rce1 {[%clk 0:00:19]}  Rd1 {[%clk 0:00:49]} 34. h4 {[%clk 0:00:17]}  Qc3 {[%clk 0:00:46]} 35. Rxd1 {[%clk 0:00:15]}  Rxd1+ {[%clk 0:00:47]} 36. Kh2 {[%clk 0:00:16]}  Rd2 {[%clk 0:00:44]} 37. Rf4 {[%clk 0:00:14]}  Qe5 {[%clk 0:00:37]} 38. Rf3 {[%clk 0:00:13]}  Qe7 {[%clk 0:00:36]} 39. h5 {[%clk 0:00:11]}  Rd4 {[%clk 0:00:31]} 40. Qh3 {[%clk 0:00:11]}  Qg5 {[%clk 0:00:24]} 41. hxg6 {[%clk 0:00:11]}  fxg6 {[%clk 0:00:24]} 42. Re3 {[%clk 0:00:10]}  Rxg4 {[%clk 0:00:24]} 43. Kg2 {[%clk 0:00:10]}  h5 {[%clk 0:00:23]} 44. Kf1 {[%clk 0:00:05]}  h4 {[%clk 0:00:23]} 45. Ne2 {[%clk 0:00:06]}  Kh6 {[%clk 0:00:20]} 46. Qf3 {[%clk 0:00:06]}  h3 {[%clk 0:00:19]} 47. Qf8+ {[%clk 0:00:05]}  Kh5 {[%clk 0:00:19]} 48. Rxh3+ {[%clk 0:00:05]}  Rh4 {[%clk 0:00:19]} 49. Qh8+ {[%clk 0:00:06]}  Kg4 {[%clk 0:00:19]} 50. Rxh4+ {[%clk 0:00:06]}  Qxh4 {[%clk 0:00:19]} 51. f3+ {[%clk 0:00:06]}  Kh3 {[%clk 0:00:19]} 52. Nf4+ {[%clk 0:00:05]}  Kg3 {[%clk 0:00:19]} 53. Qxh4+ {[%clk 0:00:05]}  Kxh4 {[%clk 0:00:19]} 54. Nxg6+ {[%clk 0:00:06]}  Kg5 {[%clk 0:00:19]} 55. Ne5 {[%clk 0:00:06]}  Kf4 {[%clk 0:00:19]} 56. Nd3+ {[%clk 0:00:05]}  Kxf3 {[%clk 0:00:19]} 57. Nc5 {[%clk 0:00:06]}  b5 {[%clk 0:00:19]} 58. a5 {[%clk 0:00:06]}  b4 {[%clk 0:00:19]} 59. Nb3 {[%clk 0:00:04]}  Ke3 {[%clk 0:00:19]} 60. Ke1 {[%clk 0:00:04]}  Kd3 {[%clk 0:00:20]} 61. Kd1 {[%clk 0:00:05]}  Kc3 {[%clk 0:00:20]} 62. Nc5 {[%clk 0:00:05]}  b3 {[%clk 0:00:20]} 63. Kc1 {[%clk 0:00:05]}  Kb4 {[%clk 0:00:20]} 64. Nb7 {[%clk 0:00:04]}  c5 {[%clk 0:00:20]} 65. Kb2 {[%clk 0:00:05]}  c4 {[%clk 0:00:20]} 66. Nd6 {[%clk 0:00:05]}  c3+ {[%clk 0:00:20]} 67. Kb1 {[%clk 0:00:05]}  Kxa5 {[%clk 0:00:21]} 68. Ne4 {[%clk 0:00:05]}  Kb4 {[%clk 0:00:21]} 69. Nd6 {[%clk 0:00:05]}  a5 {[%clk 0:00:21]} 70. Nf5 {[%clk 0:00:05]}  a4 {[%clk 0:00:22]} 71. Nd4 {[%clk 0:00:06]}  a3 {[%clk 0:00:23]} 72. Nc6+ {[%clk 0:00:06]}  Kc4 {[%clk 0:00:23]} 73. Na5+ {[%clk 0:00:06]}  Kb4 {[%clk 0:00:23]} 74. Nc6+ {[%clk 0:00:06]}  Ka4 {[%clk 0:00:24]} 75. Nd4 {[%clk 0:00:06]}  a2+ {[%clk 0:00:24]} 76. Ka1 {[%clk 0:00:07]}  c2 {[%clk 0:00:18]} 77. Nxb3 {[%clk 0:00:07]}  Kxb3 {[%clk 0:00:09]} 1/2-1/2


[Site "https://www.chess.com"]

[Event "Titled Tuesday Blitz January 17 Early 2023"]
[White "Manukian, Artak"]
[Black "Shuvalova, Polina"]
[WhiteFideId "13301373"]
[BlackFideId "24171760"]
[WhiteElo "2196"]
[BlackElo "2484"]
[Result "1/2-1/2"]
[Round "06"]
[TimeControl "180+2"]
[Date "2023.01.17"]
[WhiteClock "0:00:55"]
[BlackClock "0:00:17"]

1. e4 {[%clk 0:03:00]}  e5 {[%clk 0:02:57]} 2. Nf3 {[%clk 0:03:00]}  Nc6 {[%clk 0:02:36]} 3. d4 {[%clk 0:03:00]}  exd4 {[%clk 0:02:34]} 4. Nxd4 {[%clk 0:03:01]}  Nf6 {[%clk 0:02:33]} 5. Nxc6 {[%clk 0:03:01]}  bxc6 {[%clk 0:02:32]} 6. e5 {[%clk 0:03:01]}  Qe7 {[%clk 0:02:32]} 7. Qe2 {[%clk 0:03:02]}  Nd5 {[%clk 0:02:32]} 8. c4 {[%clk 0:03:02]}  Nb6 {[%clk 0:02:32]} 9. b3 {[%clk 0:03:03]}  g6 {[%clk 0:02:29]} 10. g3 {[%clk 0:03:02]}  Bg7 {[%clk 0:02:29]} 11. Bb2 {[%clk 0:03:01]}  O-O {[%clk 0:02:20]} 12. Bg2 {[%clk 0:03:01]}  Re8 {[%clk 0:02:14]} 13. f4 {[%clk 0:02:58]}  Bb7 {[%clk 0:02:08]} 14. O-O {[%clk 0:02:55]}  d6 {[%clk 0:01:59]} 15. Re1 {[%clk 0:02:38]}  Rad8 {[%clk 0:01:46]} 16. Nd2 {[%clk 0:02:33]}  Ba8 {[%clk 0:01:37]} 17. Qf2 {[%clk 0:02:24]}  Qf8 {[%clk 0:01:30]} 18. Ne4 {[%clk 0:02:17]}  c5 {[%clk 0:01:20]} 19. Nf6+ {[%clk 0:02:09]}  Bxf6 {[%clk 0:01:18]} 20. exf6 {[%clk 0:02:09]}  Bxg2 {[%clk 0:01:18]} 21. Qxg2 {[%clk 0:02:05]}  Rxe1+ {[%clk 0:01:12]} 22. Rxe1 {[%clk 0:02:05]}  Re8 {[%clk 0:01:13]} 23. Re4 {[%clk 0:01:54]}  h6 {[%clk 0:01:04]} 24. Qe2 {[%clk 0:01:51]}  Rxe4 {[%clk 0:01:03]} 25. Qxe4 {[%clk 0:01:52]}  Qa8 {[%clk 0:00:51]} 26. Qe7 {[%clk 0:01:45]}  Qc8 {[%clk 0:00:38]} 27. Bc3 {[%clk 0:01:19]}  Nd7 {[%clk 0:00:37]} 28. g4 {[%clk 0:01:08]}  Nf8 {[%clk 0:00:33]} 29. h3 {[%clk 0:01:04]}  Qb7 {[%clk 0:00:25]} 30. Ba5 {[%clk 0:00:59]}  Qf3 {[%clk 0:00:23]} 31. Bxc7 {[%clk 0:00:58]}  Qg3+ {[%clk 0:00:23]} 32. Kf1 {[%clk 0:00:55]}  Qxh3+ {[%clk 0:00:22]} 33. Kf2 {[%clk 0:00:55]}  Qh2+ {[%clk 0:00:21]} 34. Kf3 {[%clk 0:00:55]}  Qh1+ {[%clk 0:00:21]} 35. Kf2 {[%clk 0:00:55]}  Qh2+ {[%clk 0:00:20]} 36. Kf3 {[%clk 0:00:55]}  Qh3+ {[%clk 0:00:21]} 37. Kf2 {[%clk 0:00:55]}  Qh2+ {[%clk 0:00:17]} 1/2-1/2


[Site "https://www.chess.com"]

[Event "Titled Tuesday Blitz January 17 Early 2023"]
[White "Jovic, Stanoje"]
[Black "Aloma Vidal, Robert"]
[WhiteFideId "905020"]
[BlackFideId "2260409"]
[WhiteElo "2075"]
[BlackElo "2442"]
[Result "1/2-1/2"]
[Round "06"]
[TimeControl "180+2"]
[Date "2023.01.17"]
[WhiteClock "0:00:03"]
[BlackClock "0:00:02"]

1. c4 {[%clk 0:03:00]}  e5 {[%clk 0:03:00]} 2. g3 {[%clk 0:03:01]}  Nc6 {[%clk 0:02:56]} 3. Bg2 {[%clk 0:03:01]}  Bc5 {[%clk 0:02:57]} 4. Nc3 {[%clk 0:02:59]}  a6 {[%clk 0:02:56]} 5. Nf3 {[%clk 0:02:58]}  d6 {[%clk 0:02:56]} 6. O-O {[%clk 0:02:55]}  Ba7 {[%clk 0:02:53]} 7. e3 {[%clk 0:02:55]}  h5 {[%clk 0:02:53]} 8. d4 {[%clk 0:02:54]}  h4 {[%clk 0:02:53]} 9. dxe5 {[%clk 0:02:49]}  Nxe5 {[%clk 0:02:48]} 10. Nxe5 {[%clk 0:02:48]}  dxe5 {[%clk 0:02:49]} 11. Qxd8+ {[%clk 0:02:47]}  Kxd8 {[%clk 0:02:49]} 12. Rd1+ {[%clk 0:02:47]}  Ke8 {[%clk 0:02:47]} 13. Nd5 {[%clk 0:02:44]}  Bb8 {[%clk 0:02:47]} 14. b3 {[%clk 0:02:41]}  Ne7 {[%clk 0:02:38]} 15. Nxe7 {[%clk 0:02:34]}  Kxe7 {[%clk 0:02:38]} 16. Ba3+ {[%clk 0:02:34]}  Kf6 {[%clk 0:02:37]} 17. f4 {[%clk 0:02:29]}  hxg3 {[%clk 0:02:32]} 18. fxe5+ {[%clk 0:02:25]}  Kg5 {[%clk 0:02:26]} 19. hxg3 {[%clk 0:02:24]}  a5 {[%clk 0:02:15]} 20. Be7+ {[%clk 0:02:21]}  Kf5 {[%clk 0:01:59]} 21. Rf1+ {[%clk 0:02:09]}  Ke6 {[%clk 0:01:58]} 22. Bc5 {[%clk 0:02:05]}  c6 {[%clk 0:01:54]} 23. Bd6 {[%clk 0:02:03]}  f6 {[%clk 0:00:51]} 24. Bxb8 {[%clk 0:02:02]}  Rxb8 {[%clk 0:00:51]} 25. exf6 {[%clk 0:02:02]}  gxf6 {[%clk 0:00:51]} 26. Rad1 {[%clk 0:02:00]}  Ke7 {[%clk 0:00:47]} 27. c5 {[%clk 0:01:57]}  Be6 {[%clk 0:00:43]} 28. Rd4 {[%clk 0:01:46]}  Rbg8 {[%clk 0:00:43]} 29. Kf2 {[%clk 0:01:36]}  Rh5 {[%clk 0:00:39]} 30. Rh1 {[%clk 0:01:33]}  Rxh1 {[%clk 0:00:33]} 31. Bxh1 {[%clk 0:01:33]}  Rg5 {[%clk 0:00:34]} 32. Rh4 {[%clk 0:01:27]}  Rxc5 {[%clk 0:00:32]} 33. Rh7+ {[%clk 0:01:26]}  Bf7 {[%clk 0:00:33]} 34. Be4 {[%clk 0:01:25]}  f5 {[%clk 0:00:31]} 35. Bd3 {[%clk 0:01:20]}  Kf6 {[%clk 0:00:31]} 36. Ke2 {[%clk 0:01:14]}  b5 {[%clk 0:00:31]} 37. Rh8 {[%clk 0:01:11]}  a4 {[%clk 0:00:26]} 38. bxa4 {[%clk 0:00:56]}  bxa4 {[%clk 0:00:25]} 39. Ra8 {[%clk 0:00:50]}  Bxa2 {[%clk 0:00:25]} 40. Rxa4 {[%clk 0:00:50]}  Be6 {[%clk 0:00:22]} 41. Kd2 {[%clk 0:00:46]}  Ke5 {[%clk 0:00:21]} 42. e4 {[%clk 0:00:41]}  f4 {[%clk 0:00:20]} 43. gxf4+ {[%clk 0:00:39]}  Kxf4 {[%clk 0:00:21]} 44. Ra1 {[%clk 0:00:38]}  Rh5 {[%clk 0:00:18]} 45. Kc3 {[%clk 0:00:35]}  c5 {[%clk 0:00:16]} 46. Rf1+ {[%clk 0:00:33]}  Ke5 {[%clk 0:00:17]} 47. Rf3 {[%clk 0:00:32]}  Rh2 {[%clk 0:00:16]} 48. Rg3 {[%clk 0:00:32]}  Ra2 {[%clk 0:00:15]} 49. Rg5+ {[%clk 0:00:31]}  Kd6 {[%clk 0:00:16]} 50. e5+ {[%clk 0:00:31]}  Ke7 {[%clk 0:00:15]} 51. Rg7+ {[%clk 0:00:29]}  Kf8 {[%clk 0:00:15]} 52. Rg6 {[%clk 0:00:29]}  Ra3+ {[%clk 0:00:15]} 53. Kc2 {[%clk 0:00:24]}  Kf7 {[%clk 0:00:13]} 54. Rf6+ {[%clk 0:00:24]}  Ke7 {[%clk 0:00:13]} 55. Rh6 {[%clk 0:00:23]}  c4 {[%clk 0:00:13]} 56. Rh7+ {[%clk 0:00:22]}  Kf8 {[%clk 0:00:13]} 57. Bg6 {[%clk 0:00:18]}  Rg3 {[%clk 0:00:13]} 58. Be4 {[%clk 0:00:13]}  Re3 {[%clk 0:00:12]} 59. Rh4 {[%clk 0:00:13]}  Ke7 {[%clk 0:00:09]} 60. Kd2 {[%clk 0:00:13]}  Rg3 {[%clk 0:00:08]} 61. Rh7+ {[%clk 0:00:13]}  Kf8 {[%clk 0:00:08]} 62. Rh8+ {[%clk 0:00:13]}  Kg7 {[%clk 0:00:08]} 63. Rh7+ {[%clk 0:00:11]}  Kf8 {[%clk 0:00:08]} 64. Rh8+ {[%clk 0:00:11]}  Ke7 {[%clk 0:00:06]} 65. Rh7+ {[%clk 0:00:11]}  Kd8 {[%clk 0:00:06]} 66. Rh6 {[%clk 0:00:10]}  Bg4 {[%clk 0:00:03]} 67. Rg6 {[%clk 0:00:07]}  c3+ {[%clk 0:00:03]} 68. Kc2 {[%clk 0:00:06]}  Ke7 {[%clk 0:00:04]} 69. Rg5 {[%clk 0:00:03]}  Ke6 {[%clk 0:00:02]} 70. Bd3 {[%clk 0:00:03]}  Rxd3 {[%clk 0:00:01]} 71. Kxd3 {[%clk 0:00:02]}  Bf5+ {[%clk 0:00:01]} 72. Kxc3 {[%clk 0:00:03]}  Kxe5 {[%clk 0:00:02]} 73. Rxf5+ {[%clk 0:00:03]}  Kxf5 {[%clk 0:00:02]} 1/2-1/2


[Site "https://www.chess.com"]

[Event "Titled Tuesday Blitz January 17 Early 2023"]
[White "Piesik, Piotr"]
[Black "Bruned, Yvain"]
[WhiteFideId "1136194"]
[BlackFideId "2250292"]
[WhiteElo "2426"]
[BlackElo "2286"]
[Result "1-0"]
[Round "06"]
[TimeControl "180+2"]
[Date "2023.01.17"]
[WhiteClock "0:01:32"]
[BlackClock "0:00:44"]

1. Nf3 {[%clk 0:02:15]}  b6 {[%clk 0:03:00]} 2. g3 {[%clk 0:02:15]}  Bb7 {[%clk 0:03:00]} 3. Bg2 {[%clk 0:02:16]}  e6 {[%clk 0:03:01]} 4. O-O {[%clk 0:02:16]}  Nf6 {[%clk 0:03:02]} 5. c4 {[%clk 0:02:17]}  Be7 {[%clk 0:03:01]} 6. Nc3 {[%clk 0:02:17]}  O-O {[%clk 0:02:59]} 7. d3 {[%clk 0:02:18]}  d5 {[%clk 0:02:59]} 8. cxd5 {[%clk 0:02:17]}  Nxd5 {[%clk 0:02:59]} 9. Nxd5 {[%clk 0:02:14]}  Bxd5 {[%clk 0:02:57]} 10. e4 {[%clk 0:02:13]}  Bb7 {[%clk 0:02:57]} 11. Be3 {[%clk 0:02:10]}  c5 {[%clk 0:02:58]} 12. Qc2 {[%clk 0:02:09]}  Nc6 {[%clk 0:02:58]} 13. a3 {[%clk 0:02:09]}  Rc8 {[%clk 0:02:57]} 14. Rfd1 {[%clk 0:02:07]}  Bf6 {[%clk 0:02:57]} 15. Qa4 {[%clk 0:02:04]}  Bxb2 {[%clk 0:02:46]} 16. Rab1 {[%clk 0:02:03]}  Bd4 {[%clk 0:02:38]} 17. Nxd4 {[%clk 0:02:02]}  cxd4 {[%clk 0:02:39]} 18. Bf4 {[%clk 0:01:59]}  e5 {[%clk 0:02:23]} 19. Bd2 {[%clk 0:01:59]}  Rc7 {[%clk 0:02:22]} 20. Rdc1 {[%clk 0:01:57]}  Qc8 {[%clk 0:01:59]} 21. h4 {[%clk 0:01:54]}  f6 {[%clk 0:01:36]} 22. Kh2 {[%clk 0:01:54]}  Ba8 {[%clk 0:01:10]} 23. Bh3 {[%clk 0:01:51]}  Qd8 {[%clk 0:01:11]} 24. Rc4 {[%clk 0:01:36]}  Na5 {[%clk 0:00:49]} 25. Bxa5 {[%clk 0:01:32]}  Rxc4 {[%clk 0:00:44]} 26. Qxc4+ {[%clk 0:01:32]} 1-0


[Site "https://www.chess.com"]

[Event "Titled Tuesday Blitz January 17 Early 2023"]
[White "Szpar, Milosz"]
[Black "Horcajuelo Rocamora, Martin"]
[WhiteFideId "1184989"]
[BlackFideId "24573027"]
[WhiteElo "2447"]
[BlackElo "2107"]
[Result "1-0"]
[Round "06"]
[TimeControl "180+2"]
[Date "2023.01.17"]
[WhiteClock "0:00:07"]
[BlackClock "0:00:02"]

1. e4 {[%clk 0:03:00]}  c5 {[%clk 0:02:54]} 2. Nf3 {[%clk 0:03:00]}  e6 {[%clk 0:02:54]} 3. c3 {[%clk 0:03:00]}  d5 {[%clk 0:02:48]} 4. exd5 {[%clk 0:03:00]}  Qxd5 {[%clk 0:02:47]} 5. d4 {[%clk 0:03:00]}  cxd4 {[%clk 0:02:46]} 6. cxd4 {[%clk 0:03:00]}  Nc6 {[%clk 0:02:47]} 7. Nc3 {[%clk 0:03:00]}  Bb4 {[%clk 0:02:46]} 8. Bd3 {[%clk 0:02:49]}  Nf6 {[%clk 0:02:42]} 9. O-O {[%clk 0:02:49]}  Qd8 {[%clk 0:02:40]} 10. a3 {[%clk 0:02:45]}  Bd6 {[%clk 0:02:37]} 11. Bg5 {[%clk 0:02:42]}  h6 {[%clk 0:02:35]} 12. Bh4 {[%clk 0:02:42]}  Be7 {[%clk 0:02:24]} 13. Bc2 {[%clk 0:02:39]}  O-O {[%clk 0:02:19]} 14. Qd3 {[%clk 0:02:39]}  g6 {[%clk 0:02:17]} 15. Rfe1 {[%clk 0:02:37]}  Nd5 {[%clk 0:02:12]} 16. Bg3 {[%clk 0:02:32]}  Nxc3 {[%clk 0:02:10]} 17. bxc3 {[%clk 0:02:31]}  Bf6 {[%clk 0:02:10]} 18. Rad1 {[%clk 0:02:31]}  Qa5 {[%clk 0:02:02]} 19. c4 {[%clk 0:02:28]}  Bg7 {[%clk 0:01:58]} 20. d5 {[%clk 0:02:27]}  exd5 {[%clk 0:01:59]} 21. cxd5 {[%clk 0:02:27]}  Bf5 {[%clk 0:01:56]} 22. Qb3 {[%clk 0:02:26]}  Bxc2 {[%clk 0:01:53]} 23. Qxc2 {[%clk 0:02:27]}  Nd4 {[%clk 0:01:43]} 24. Nxd4 {[%clk 0:02:16]}  Bxd4 {[%clk 0:01:44]} 25. Re7 {[%clk 0:02:04]}  Rac8 {[%clk 0:01:27]} 26. Qd3 {[%clk 0:02:01]}  Bf6 {[%clk 0:01:12]} 27. Rxb7 {[%clk 0:02:01]}  Rc3 {[%clk 0:01:12]} 28. Qe2 {[%clk 0:01:56]}  Qxa3 {[%clk 0:00:59]} 29. d6 {[%clk 0:01:54]}  Rc1 {[%clk 0:00:59]} 30. d7 {[%clk 0:01:48]}  Qa1 {[%clk 0:00:56]} 31. Rxc1 {[%clk 0:01:44]}  Qxc1+ {[%clk 0:00:57]} 32. Qf1 {[%clk 0:01:45]}  Qc5 {[%clk 0:00:49]} 33. Qd1 {[%clk 0:01:37]}  Rd8 {[%clk 0:00:44]} 34. Rc7 {[%clk 0:01:20]}  Qb6 {[%clk 0:00:40]} 35. h3 {[%clk 0:01:06]}  Kg7 {[%clk 0:00:39]} 36. Qd5 {[%clk 0:00:59]}  a6 {[%clk 0:00:20]} 37. Kh2 {[%clk 0:00:59]}  Qb5 {[%clk 0:00:20]} 38. Qd6 {[%clk 0:00:53]}  a5 {[%clk 0:00:18]} 39. Rc6 {[%clk 0:00:40]}  Qf5 {[%clk 0:00:16]} 40. Rc7 {[%clk 0:00:18]}  a4 {[%clk 0:00:16]} 41. Bf4 {[%clk 0:00:11]}  a3 {[%clk 0:00:13]} 42. g4 {[%clk 0:00:11]}  Qe4 {[%clk 0:00:09]} 43. Bxh6+ {[%clk 0:00:11]}  Kxh6 {[%clk 0:00:06]} 44. Qxf6 {[%clk 0:00:12]}  a2 {[%clk 0:00:03]} 45. Rc8 {[%clk 0:00:07]}  Rxd7 {[%clk 0:00:02]} 46. Rh8# {[%clk 0:00:07]} 1-0


[Site "https://www.chess.com"]